fUSD/lending_fUSD_20240502
["ID","MTS","AMOUNT","RATE_DAILY","PERIOD"]
[325290962,1714683078129,-9695.1,0.00030958,2]
[325290963,1714683078138,-941.56,0.00030958,2]
[325290964,1714683078147,-500.0,0.00030958,2]
[325290965,1714683078156,-540.05,0.00030958,2]
[325290966,1714683078165,-4089.27,0.00030958,2]
[325290967,1714683078174,-1263.89,0.00030958,2]
[325290968,1714683078183,-1574.56,0.00030958,2]
[325290969,1714683078192,-946.74,0.00030958,2]
[325290970,1714683078201,-2116.12,0.00030958,2]
[325290971,1714683078210,-833.0,0.00030958,2]
[325290972,1714683078219,-4373.06,0.00030958,2]
[325290973,1714683078228,-1640.29,0.00030958,2]
[325290974,1714683078238,-3018.57,0.00030958,2]
[325290975,1714683078247,-500.0,0.00030958,2]
[325290976,1714683078255,-500.0,0.00030958,2]
[325290977,1714683078265,-989.93,0.00030958,2]
[325290978,1714683078274,-19891.27,0.00030958,2]
[325290979,1714683078283,-740.29,0.00030958,2]
[325290980,1714683078292,-2971.98,0.00030958,2]
[325290981,1714683078301,-548.43,0.00030958,2]
[325290982,1714683078311,-1971.49,0.00030958,2]
[325290983,1714683078320,-500.0,0.00030958,2]
[325290984,1714683078330,-500.0,0.00030958,2]
[325290985,1714683078339,-927.39,0.00030958,2]
[325290986,1714683078350,-1288.02,0.00030958,2]
[325290987,1714683078359,-500.0,0.00030958,2]
[325290988,1714683078368,-817.28,0.00030958,2]
[325290989,1714683078377,-500.0,0.00030958,2]
[325290990,1714683078386,-339.49,0.00030958,2]
[325290991,1714683078396,-1615.23,0.00030958,2]
[325290992,1714683078404,-11495.52,0.00030958,2]
[325290993,1714683078414,-1258.21,0.00030958,2]
[325290994,1714683078423,-2771.84,0.00030958,2]
[325290995,1714683078432,-1011.03,0.00030958,2]
[325290996,1714683078442,-1378.34,0.00030958,2]
[325290997,1714683078452,-3318.29,0.00030958,2]
[325290998,1714683078461,-3467.39,0.00030958,2]
[325290999,1714683078470,-808.88,0.00030958,2]
[325291000,1714683078480,-12295.9,0.00030958,2]
[325291001,1714683078490,-2575.2,0.00030958,2]
[325291002,1714683078499,-1484.73,0.00030958,2]
[325291003,1714683078508,-511.28,0.00030958,2]
[325291004,1714683078517,-500.0,0.00030958,2]
[325291005,1714683078526,-1367.4,0.00030958,2]
[325291006,1714683078536,-500.0,0.00030958,2]
[325291007,1714683078546,-500.0,0.00030958,2]
[325291008,1714683078555,-1154.2,0.00030958,2]
[325291009,1714683078566,-500.0,0.00030958,2]
[325291010,1714683078576,-500.0,0.00030958,2]
[325291011,1714683078586,-1248.55,0.00030958,2]
[325291012,1714683078597,-1392.65,0.00030958,2]
[325291013,1714683078606,-5923.2,0.00030958,2]
[325291014,1714683078616,-2102.3,0.00030958,2]
[325291015,1714683078626,-1440.14,0.00030958,2]
[325291016,1714683078635,-3535.22,0.00030958,2]
[325291017,1714683078645,-896.52,0.00030958,2]
[325291018,1714683078655,-2915.59,0.00030958,2]
[325291019,1714683078664,-639.04,0.00030958,2]
[325291020,1714683078674,-4754.88,0.00030958,2]
[325291021,1714683078683,-500.0,0.00030958,2]
[325291022,1714683078693,-57354.3,0.00030958,2]
[325291023,1714683078704,-1162.97,0.00030958,2]
[325291024,1714683078714,-5719.64,0.00030958,2]
[325291025,1714683078724,-2218.92,0.00030958,2]
[325291026,1714683078734,-898.07,0.00030958,2]
[325291027,1714683078743,-500.0,0.00030958,2]
[325291028,1714683078753,-500.0,0.00030958,2]
[325291029,1714683078767,-2724.43,0.00030958,2]
[325291030,1714683078777,-1758.7,0.00030958,2]
[325291031,1714683078787,-500.0,0.00030958,2]
[325291032,1714683078797,-500.0,0.00030958,2]
[325291033,1714683078809,-2516.79,0.00030958,2]
[325291034,1714683078820,-239.09579136,0.00030958,2]
[325291035,1714683078830,-7172.87,0.00030958,2]
[325291036,1714683078840,-500.0,0.00030958,2]
[325291037,1714683078851,-795.08,0.00030958,2]
[325291038,1714683078860,-500.0,0.00030958,2]
[325291039,1714683078870,-6587.91,0.00030958,2]
[325291040,1714683078880,-500.0,0.00030958,2]
[325291041,1714683078890,-3941.28,0.00030958,2]
[325291042,1714683078899,-500.0,0.00030958,2]
[325291043,1714683078909,-1364.01,0.00030958,2]
[325291044,1714683078919,-500.0,0.00030958,2]
[325291045,1714683078928,-2146.19,0.00030958,2]
[325291046,1714683078938,-556.18,0.00030958,2]
[325291047,1714683078948,-587.92,0.00030958,2]
[325291048,1714683078957,-500.0,0.00030958,2]
[325291049,1714683078967,-3731.86,0.00030958,2]
[325291050,1714683078977,-12785.55,0.00030958,2]
[325291051,1714683078986,-727.53,0.00030958,2]
[325291052,1714683078996,-846.01,0.00030958,2]
[325291053,1714683079005,-500.0,0.00030958,2]
[325291054,1714683079015,-533.28,0.00030958,2]
[325291055,1714683079025,-18444.19,0.00030958,2]
[325291056,1714683079035,-3601.62,0.00030958,2]
[325291057,1714683079045,-2895.18,0.00030958,2]
[325291058,1714683079056,-500.0,0.00030958,2]
[325291059,1714683079065,-1353.44,0.00030958,2]
[325291060,1714683079075,-335.45,0.00030958,2]
[325291061,1714683079084,-14107.57,0.00030958,2]
[325291062,1714683079094,-500.0,0.00030958,2]
[325291063,1714683079103,-500.0,0.00030958,2]
[325291064,1714683079112,-5327.9,0.00030958,2]
[325291065,1714683079122,-545.66,0.00030958,2]
[325291066,1714683079131,-1745.58,0.00030958,2]
[325291067,1714683079141,-500.0,0.00030958,2]
[325291068,1714683079150,-500.0,0.00030958,2]
[325291069,1714683079160,-3148.03,0.00030958,2]
[325291070,1714683079170,-22162.2,0.00030958,2]
[325291071,1714683079180,-1367.75,0.00030958,2]
[325291072,1714683079189,-1652.07,0.00030958,2]
[325291073,1714683079199,-6157.93,0.00030958,2]
[325291074,1714683079208,-3794.04,0.00030958,2]
[325291075,1714683079218,-4778.95,0.00030958,2]
[325291076,1714683079227,-1958.68,0.00030958,2]
[325291077,1714683079236,-500.0,0.00030958,2]
[325291078,1714683079246,-1798.53,0.00030958,2]
[325291079,1714683079255,-3158.22,0.00030958,2]
[325291080,1714683079265,-621.64,0.00030958,2]
[325291081,1714683079275,-500.0,0.00030958,2]
[325291082,1714683079284,-150.0,0.00030958,2]
[325291083,1714683079294,-500.0,0.00030958,2]
[325291084,1714683079303,-500.0,0.00030958,2]
[325291085,1714683079313,-500.0,0.00030958,2]
[325291086,1714683079322,-500.0,0.00030958,2]
[325291087,1714683079332,-500.0,0.00030958,2]
[325291088,1714683079341,-500.0,0.00030958,2]
[325291089,1714683079352,-500.0,0.00030958,2]
[325291090,1714683079361,-11517.06,0.00030958,2]
[325291091,1714683079370,-1917.03,0.00030958,2]
[325291092,1714683079379,-500.0,0.00030958,2]
[325291093,1714683079389,-600.44,0.00030958,2]
[325291094,1714683079405,-500.0,0.00030958,2]
[325291095,1714683079416,-2389.26,0.00030958,2]
[325291096,1714683079427,-3409.08,0.00030958,2]
[325291097,1714683079436,-500.0,0.00030958,2]
[325291098,1714683079445,-500.0,0.00030958,2]
[325291099,1714683079455,-895.45,0.00030958,2]
[325291100,1714683079464,-1993.8,0.00030958,2]
[325291101,1714683079474,-1050.96,0.00030958,2]
[325291102,1714683079483,-500.0,0.00030958,2]
[325291103,1714683079493,-593.18,0.00030958,2]
[325291104,1714683079503,-916.18,0.00030958,2]
[325291105,1714683079512,-5393.45,0.00030958,2]
[325291106,1714683079522,-1471.71,0.00030958,2]
[325291107,1714683079532,-6233.63,0.00030958,2]
[325291108,1714683079542,-500.0,0.00030958,2]
[325291109,1714683079551,-1072.35,0.00030958,2]
[325291110,1714683079561,-1911.42,0.00030958,2]
[325291111,1714683079571,-6276.9,0.00030958,2]
[325291112,1714683079581,-4201.34,0.00030958,2]
[325291113,1714683079591,-500.0,0.00030958,2]
[325291114,1714683079606,-12002.08,0.00030958,2]
[325291115,1714683079616,-525.65,0.00030958,2]
[325291116,1714683079626,-267.86441809,0.00030958,2]
[325291117,1714683079635,-2569.46,0.00030958,2]
[325291118,1714683079645,-1639.18,0.00030958,2]
[325291119,1714683079655,-581.68,0.00030958,2]
[325291120,1714683079664,-3019.6,0.00030958,2]
[325291121,1714683079674,-4291.9,0.00030958,2]
[325291122,1714683079684,-1823.22,0.00030958,2]
[325291123,1714683079693,-500.0,0.00030958,2]
[325291124,1714683079703,-1481.76,0.00030958,2]
[325291125,1714683079715,-5680.57,0.00030958,2]
[325291126,1714683079724,-500.0,0.00030958,2]
[325291127,1714683079734,-2091.1,0.00030958,2]
[325291128,1714683079744,-1422.07,0.00030958,2]
[325291129,1714683079753,-205.366571,0.00030958,7]
[325291130,1714683079764,-500.0,0.00030958,2]
[325291131,1714683079773,-905.42,0.00030958,2]
[325291132,1714683079784,-2863.86,0.00030958,2]
[325291133,1714683079796,-500.0,0.00030958,2]
[325291134,1714683079805,-3291.58,0.00030958,2]
[325291135,1714683079815,-500.0,0.00030958,2]
[325291136,1714683079825,-47604.18,0.00030958,2]
[325291137,1714683079835,-1224.27,0.00030958,2]
[325291138,1714683079848,-205.366571,0.00030958,7]
[325291139,1714683079858,-1855.65,0.00030958,2]
[325291140,1714683079869,-500.0,0.00030958,2]
[325291141,1714683079879,-1623.6,0.00030958,2]
[325291142,1714683079889,-1802.62,0.00030958,2]
[325291143,1714683079899,-1810.9,0.00030958,2]
[325291144,1714683079908,-838.98,0.00030958,2]
[325291145,1714683079917,-2517.76,0.00030958,2]
[325291146,1714683079927,-1296.39,0.00030958,2]
[325291147,1714683079936,-851.37,0.00030958,2]
[325291148,1714683079946,-597.5,0.00030958,2]
[325291149,1714683079955,-500.0,0.00030958,2]
[325291150,1714683079965,-1070.42,0.00030958,2]
[325291151,1714683079974,-1926.04,0.00030958,2]
[325291152,1714683079984,-500.0,0.00030958,2]
[325291153,1714683079994,-2162.83,0.00030958,2]
[325291154,1714683080004,-500.0,0.00030958,2]
[325291155,1714683080013,-1566.25,0.00030958,2]
[325291156,1714683080023,-1251.29,0.00030958,2]
[325291157,1714683080033,-500.0,0.00030958,2]
[325291158,1714683080043,-2063.74,0.00030958,2]
[325291159,1714683080054,-9265.55,0.00030958,2]
[325291160,1714683080063,-754.44,0.00030958,2]
[325291161,1714683080073,-500.0,0.00030958,2]
[325291162,1714683080083,-500.0,0.00030958,2]
[325291163,1714683080093,-1289.93,0.00030958,2]
[325291164,1714683080104,-9897.76,0.00030958,2]
[325291165,1714683080114,-500.0,0.00030958,2]
[325291166,1714683080124,-8380.0,0.00030958,2]
[325291167,1714683080133,-1121.93,0.00030958,2]
[325291168,1714683080143,-1959.02,0.00030958,2]
[325291169,1714683080153,-1321.59,0.00030958,2]
[325291170,1714683080162,-2879.67,0.00030958,2]
[325291171,1714683080172,-10134.49,0.00030958,2]
[325291172,1714683080182,-5403.02,0.00030958,2]
[325291173,1714683080191,-1940.11,0.00030958,2]
[325291174,1714683080201,-1858.84,0.00030958,2]
[325291175,1714683080211,-500.0,0.00030958,2]
[325291176,1714683080221,-500.0,0.00030958,2]
[325291177,1714683080231,-4682.26,0.00030958,2]
[325291178,1714683080240,-4098.44,0.00030958,2]
[325291179,1714683080250,-775.82,0.00030958,2]
[325291180,1714683080259,-156.91741453,0.00030958,2]
[325291181,1714683080270,-1367.68,0.00030958,2]
[325291182,1714683080280,-500.0,0.00030958,2]
[325291183,1714683080290,-500.0,0.00030958,2]
[325291184,1714683080300,-557.56,0.00030958,2]
[325291185,1714683080310,-752.66,0.00030958,2]
[325291186,1714683080320,-500.0,0.00030958,2]
[325291187,1714683080329,-500.0,0.00030958,2]
[325291188,1714683080339,-718.62,0.00030958,2]
[325291189,1714683080351,-1352.07,0.00030958,2]
[325291190,1714683080362,-1633.77,0.00030958,2]
[325291191,1714683080372,-1044.52,0.00030958,2]
[325291192,1714683080382,-500.0,0.00030958,2]
[325291193,1714683080391,-500.0,0.00030958,2]
[325291194,1714683080402,-5944.95,0.00030958,2]
[325291195,1714683080412,-500.0,0.00030958,2]
[325291196,1714683080423,-4431.81,0.00030958,2]
[325291197,1714683080434,-1089.0,0.00030958,2]
[325291198,1714683080444,-2269.33,0.00030958,2]
[325291199,1714683080454,-500.0,0.00030958,2]
[325291200,1714683080463,-2273.89,0.00030958,2]
[325291201,1714683080739,-500.0,0.00030958,2]
[325291202,1714683080762,-2735.7,0.00030958,2]
[325291203,1714683080780,-2213.5,0.00030958,2]
[325291204,1714683080790,-533.06,0.00030958,2]
[325291205,1714683080800,-199.050305,0.00030968,4]
[325291206,1714683080810,-199.050305,0.00030968,6]
[325291207,1714683080821,-199.050305,0.00030968,10]
[325291208,1714683080831,-199.050305,0.00030968,12]
[325291209,1714683080841,-207.3559119,0.00030978,2]
[325291210,1714683080854,-199.050305,0.00030978,12]
[325291211,1714683080864,-199.050305,0.00030978,10]
[325291212,1714683080874,-199.050305,0.00030978,6]
[325291213,1714683080884,-199.050305,0.00030978,4]
[325291214,1714683080894,-1833.29017,0.00030979,2]
[325291215,1714683080904,-200.0,0.00030987,30]
[325291216,1714683080914,-199.050305,0.00030988,4]
[325291217,1714683080924,-199.050305,0.00030988,6]
[325291218,1714683080934,-199.050305,0.00030988,10]
[325291219,1714683080944,-199.050305,0.00030988,12]
[325291220,1714683080954,-1679.1210722,0.00030989,2]
[325291221,1714683080964,-2675.1523466,0.00030989,2]
[325291222,1714683080974,-41624.8525747,0.00030989,2]
[325291223,1714683080984,-3452.8412753,0.00030989,2]
[325291224,1714683080994,-2704.2410013,0.00030989,2]
[325291225,1714683081004,-6885.9074604,0.00030989,2]
[325291226,1714683081013,-205.366571,0.00030989,7]
[325291227,1714683081022,-205.366571,0.00030989,7]
[325291228,1714683081032,-5272.2336587,0.00030989,2]
[325291229,1714683081042,-211.050305,0.00030997,4]
[325291230,1714683081052,-211.050305,0.00030997,6]
[325291231,1714683081061,-211.050305,0.00030997,10]
[325291232,1714683081071,-211.050305,0.00030997,12]
[325291233,1714683081081,-211.050305,0.00030997,14]
[325291234,1714683081090,-211.050305,0.00030997,12]
[325291235,1714683081102,-211.050305,0.00030997,10]
[325291236,1714683081111,-211.050305,0.00030997,6]
[325291237,1714683081121,-211.050305,0.00030997,4]
[325291238,1714683081130,-199.050305,0.00030998,10]
[325291239,1714683081139,-199.050305,0.00030998,6]
[325291240,1714683081149,-199.050305,0.00030998,4]
[325291241,1714683081158,-646.91,0.00030999,2]
[325291242,1714683081168,-646.91,0.00030999,2]
[325291243,1714683081178,-646.91,0.00030999,2]
[325291244,1714683081187,-646.91,0.00030999,2]
[325291245,1714683081197,-646.91,0.00030999,2]
[325291246,1714683081207,-646.91,0.00030999,2]
[325291247,1714683081216,-646.91,0.00030999,2]
[325291248,1714683081226,-646.91,0.00030999,2]
[325291249,1714683081235,-646.91,0.00030999,2]
[325291250,1714683081245,-646.91,0.00030999,2]
[325291251,1714683081255,-646.91,0.00030999,2]
[325291252,1714683081266,-646.91,0.00030999,2]
[325291253,1714683081276,-646.91,0.00030999,2]
[325291254,1714683081286,-647.03576784,0.00030999,2]
[325291255,1714683081296,-50000.0,0.00031,11]
[325291256,1714683081306,-50000.0,0.00031,21]
[325291257,1714683081317,-1875.19692477,0.00031,3]
[325291258,1714683081326,-3667467.73224928,0.00031,5]
[325291259,1714683081958,-685.18616255,0.00031,5]
[325291260,1714683081971,-3907.35348,0.00031,5]
[325291261,1714683081982,-13494.2596399,0.00031,5]
[325291262,1714683082089,-406.24944498,0.00031,5]
[325291263,1714683082102,-587.75367793,0.00031,5]
[325291264,1714683082113,-500.0008285,0.00031,5]
[325291265,1714683082666,-853.98435271,0.00029898,2]
[325291266,1714683082678,-2780.72755174,0.00029898,2]
[325291267,1714683082689,-156.72244826,0.00030136,2]
[325291268,1714683082703,-2424.77755174,0.00030136,2]
[325291269,1714683082713,-14898.26609189,0.00030136,2]
[325291270,1714683082734,-18305.26390811,0.00030136,2]
[325291271,1714683082744,-932.86,0.00030136,2]
[325291272,1714683082754,-500.0,0.00030136,2]
[325291273,1714683082764,-500.0,0.00030136,2]
[325291274,1714683082777,-500.0,0.00030136,2]
[325291275,1714683082787,-500.0,0.00030136,2]
[325291276,1714683082797,-2581.5,0.0003041,2]
[325291277,1714683082807,-27771.74017282,0.0003041,2]
[325291278,1714683082829,-304.107816,0.0003041,2]
[325291279,1714683082851,-5127.68201118,0.0003041,2]
[325291280,1714683082862,-932.86,0.0003041,2]
[325291281,1714683082953,-500.0,0.0003041,2]
[325291282,1714683082963,-500.0,0.0003041,2]
[325291283,1714683082972,-500.0,0.0003041,2]
[325291284,1714683082981,-500.0,0.0003041,2]
[325291285,1714683082991,-2581.5,0.00030684,2]
[325291286,1714683083000,-29257.95798882,0.00030684,2]
[325291287,1714683083012,-3945.57201118,0.00030684,2]
[325291288,1714683083021,-500.0,0.00030684,2]
[325291289,1714683083031,-932.86,0.00030684,2]
[325291290,1714683083040,-499.98359462,0.00030684,2]
[325291291,1714683084128,-0.01640538,0.00030684,2]
[325291292,1714683084138,-500.0,0.00030684,2]
[325291293,1714683084147,-167.84023439,0.000309,2]
[325291294,1714683084157,-2581.5,0.00030958,2]
[325291295,1714683084166,-1685.30662963,0.00030958,2]
[325291296,1714683084178,-29849.43499999,0.00030958,2]
[325291297,1714683084891,-815.26017648,0.00030135,4]
[325291298,1714683084902,-890.90225903,0.00030135,4]
[325291299,1714683084912,-192.79364736,0.00030135,4]
[325291300,1714683084921,-553.68213634,0.00030135,4]
[325291301,1714683084931,-544.40253101,0.00030136,2]
[325291302,1714683084941,-500.0,0.00030136,2]
[325291303,1714683084950,-500.0,0.00030136,2]
[325291304,1714683084959,-500.0,0.00030136,2]
[325291305,1714683084968,-500.0,0.00030136,2]
[325291306,1714683084977,-500.0,0.00030136,2]
[325291307,1714683084986,-584.48,0.00030136,2]
[325291308,1714683084996,-500.0,0.00030136,2]
[325291309,1714683085005,-500.0,0.00030136,2]
[325291310,1714683085015,-500.0,0.0003041,2]
[325291311,1714683085024,-500.0,0.0003041,2]
[325291312,1714683085033,-500.0,0.0003041,2]
[325291313,1714683085043,-210.4,0.00030684,2]
[325291314,1714683085052,-500.0,0.00030684,2]
[325291315,1714683085062,-1668.78837038,0.00030958,2]
[325291316,1714683085071,-932.86,0.00030958,2]
[325291317,1714683085081,-500.0,0.00030958,2]
[325291318,1714683085090,-48201.37384968,0.00031,5]
[325291319,1714683085103,-53116.024,0.00031,5]
[325291320,1714683085115,-2219.09094016,0.00031,5]
[325291321,1714683085232,-649.42,0.00031,5]
[325291322,1714683085322,-500.0,0.0003041,2]
[325291323,1714683085331,-460.71257319,0.0003041,2]
[325291324,1714683085342,-39.28742681,0.0003041,2]
[325291325,1714683085352,-500.0,0.00030958,2]
[325291326,1714683085362,-29360.71257319,0.00031,5]
[325291327,1714683085373,-13583.87518621,0.00031,5]
[325291328,1714683085385,-3257.396122,0.00031,5]
[325291329,1714683089897,772.0830508,0.00012092,2]
[325291331,1714683108482,34853.82748235,0.00012878,2]
[325291339,1714683175077,308.76784163,0.000129,2]
[325291342,1714683224216,228.66632502,0.000129,2]
[325291343,1714683239787,278.61913117,0.000129,2]
[325291344,1714683255452,524.62799877,0.000129,2]
[325291345,1714683270399,268.33265051,0.00012,30]
[325291350,1714683387596,349.75199918,0.000129,2]
[325291351,1714683518038,233.16799946,0.000129,2]
[325291352,1714683521962,22782.38898661,0.00012867,2]
[325291353,1714683535441,306.96990953,0.000129,2]
[325291354,1714683535491,751.10707853,0.00012347,2]
[325291355,1714683545758,798.28809431,0.00012347,2]
[325291358,1714683609431,342.46738538,0.000129,2]
[325291361,1714683648410,155.44533298,0.000129,2]
[325291363,1714683682504,151.29251736,0.00012878,2]
[325291364,1714683687496,151.29251735,0.00012883,2]
[325291365,1714683692500,151.29251735,0.00012889,2]
[325291366,1714683697535,151.29251735,0.00012894,2]
[325291367,1714683702513,151.29251735,0.00012899,2]
[325291371,1714683939615,153.48495476,0.00012899,2]
[325291373,1714683941561,153.48495476,0.00012899,2]
[325291379,1714683943822,153.48495476,0.000129,2]
[325291380,1714683945612,153.48495476,0.000129,2]
[325291381,1714684044410,12949.4037,0.0001287,2]
[325291382,1714684046657,150.71,0.00012809,2]
[325291385,1714684104456,250.0,0.00012855,2]
[325291390,1714684142642,150.0,0.00010993,2]
[325291391,1714684207139,859.54,0.00012855,3]
[325291425,1714684232268,-308.68743525,0.00012945,2]
[325291430,1714684232299,-2746.1832275,0.00012945,2]
[325291432,1714684232308,-155.0,0.00012946,2]
[325291434,1714684232318,-538.45150447,0.00012946,2]
[325291435,1714684232327,-1038.05689269,0.00012947,2]
[325291438,1714684232337,-1269.872327,0.00012948,2]
[325291439,1714684232347,-1933.0,0.00012952,2]
[325291441,1714684232356,-4585.65564507,0.00012985,2]
[325291442,1714684232365,-2217.06939239,0.00012997,2]
[325291443,1714684232374,-311.01584163,0.00012997,2]
[325291444,1714684232383,-194.21334384,0.00012997,2]
[325291445,1714684232392,-2179.97190532,0.00012997,2]
[325291446,1714684232402,-1268.49408794,0.00012997,2]
[325291447,1714684232411,-205.32734615,0.00012997,2]
[325291448,1714684232420,-155.09106065,0.00012997,2]
[325291449,1714684232429,-155.0,0.00012997,2]
[325291450,1714684232439,-2360.77834746,0.00012997,2]
[325291451,1714684232448,-363.03433536,0.00012997,2]
[325291452,1714684232457,-155.0,0.00012997,2]
[325291453,1714684232466,-155.43117537,0.00012997,2]
[325291454,1714684232476,-168.99113432,0.00012997,2]
[325291455,1714684232485,-155.0,0.00012997,2]
[325291456,1714684232495,-444.46701666,0.00012997,2]
[325291457,1714684232507,-404.95082115,0.00012997,2]
[325291458,1714684232516,-161.56691245,0.00012997,2]
[325291459,1714684232525,-3082.32734056,0.00012997,2]
[325291460,1714684232534,-165.37997701,0.00012997,2]
[325291461,1714684232544,-2356.65012333,0.00012997,2]
[325291462,1714684232554,-157.23443646,0.00012997,2]
[325291463,1714684232563,-1352.26248503,0.00012997,2]
[325291464,1714684232572,-354.29272194,0.00012997,2]
[325291465,1714684232581,-1458.01097791,0.00012997,2]
[325291466,1714684232591,-386.08650014,0.00012997,2]
[325291467,1714684232600,-3001.65889749,0.00012997,2]
[325291468,1714684232611,-155.0,0.00012997,2]
[325291469,1714684232620,-2683.73153442,0.00012997,2]
[325291470,1714684232630,-324.01808978,0.00012997,2]
[325291471,1714684232640,-478.22948694,0.00012997,2]
[325291472,1714684232649,-52.94242754,0.00012997,2]
[325291474,1714684232662,-102.05757246,0.00012997,2]
[325291475,1714684232671,-206.88313584,0.00012997,2]
[325291477,1714684232680,-363.25198419,0.00012997,2]
[325291479,1714684232689,-155.0,0.00012997,2]
[325291481,1714684232698,-324.28945999,0.00012997,2]
[325291483,1714684232710,-487.58768954,0.00012997,2]
[325291485,1714684232719,-325.87564899,0.00012997,2]
[325291487,1714684232728,-313.2357272,0.00012997,2]
[325291489,1714684232737,-200.40599956,0.00012997,2]
[325291491,1714684232746,-155.0,0.00012997,2]
[325291493,1714684232757,-494.89022098,0.00012997,2]
[325291495,1714684232767,-304.30621889,0.00012997,2]
[325291497,1714684232776,-569.40713457,0.00012997,2]
[325291499,1714684232788,-137.46255168,0.00012997,2]
[325291501,1714684232798,-499.99,0.00012997,2]
[325291503,1714684232808,-927.13,0.00012997,2]
[325291505,1714684232817,-2584.14282898,0.00012997,2]
[325291506,1714684232826,-524.24934051,0.00012997,2]
[325291508,1714684232836,-223.65370089,0.00012997,2]
[325291510,1714684232845,-262.62998763,0.00012998,2]
[325291511,1714684232854,-1032147.64704695,0.00012999,2]
[325291512,1714684232866,-30989.86678108,0.00012999,2]
[325291513,1714684232877,-21584.95682334,0.00012999,2]
[325291514,1714684232888,-40272.57464246,0.00012999,2]
[325291515,1714684232899,-2335.98145631,0.00012999,2]
[325291516,1714684232911,-9379.33944366,0.00012999,2]
[325291517,1714684232935,-904.96532417,0.00012999,2]
[325291518,1714684232947,-357.46371413,0.00012999,2]
[325291519,1714684233343,-4830.43984845,0.00012999,2]
[325291520,1714684233361,-6018.32790803,0.00012999,2]
[325291521,1714684233372,-2291.08562381,0.00012999,2]
[325291522,1714684233384,-1162.26223792,0.00012999,2]
[325291523,1714684233395,-4503.556761,0.00012999,2]
[325291524,1714684233406,-9012.3104224,0.00012999,2]
[325291525,1714684233417,-4932.28204737,0.00012999,2]
[325291526,1714684233428,-3649.70912852,0.00012999,2]
[325291527,1714684233440,-11525.58191322,0.00012999,2]
[325291528,1714684233459,-1493.56061382,0.00012999,2]
[325291529,1714684233471,-2040.41244433,0.00012999,2]
[325291530,1714684233490,-1016.27333657,0.00012999,2]
[325291531,1714684233501,-920.5160698,0.00012999,2]
[325291532,1714684233516,-750.09517664,0.00012999,2]
[325291533,1714684233528,-1627.23699014,0.00012999,2]
[325291534,1714684233539,-376.2556118,0.00012999,2]
[325291535,1714684233550,-1381.95190557,0.00012999,2]
[325291536,1714684233562,-293.26397614,0.00012999,2]
[325291537,1714684233573,-650.23905597,0.00012999,2]
[325291538,1714684233586,-4244.00005,0.00012999,2]
[325291539,1714684233598,-3110.10733275,0.00012999,2]
[325291540,1714684233622,-2142.48428039,0.00012999,2]
[325291541,1714684233635,-1217.08015349,0.00012999,2]
[325291542,1714684233646,-331.5,0.00012999,2]
[325291543,1714684233659,-1299.02376926,0.00012999,2]
[325291544,1714684233671,-3064.60664569,0.00012999,2]
[325291545,1714684233683,-1229.285,0.00012999,2]
[325291546,1714684233698,-53310.11213868,0.00012999,2]
[325291547,1714684233710,-10076.94638976,0.00012999,2]
[325291548,1714684233722,-154419.29215717,0.00012999,2]
[325291549,1714684233733,-813.06510203,0.00012999,2]
[325291550,1714684233745,-5902.51031461,0.00012999,2]
[325291551,1714684233756,-304.34121688,0.00012999,2]
[325291552,1714684233768,-19716.01247837,0.00012999,2]
[325291553,1714684233778,-150.99,0.00012999,2]
[325291554,1714684233787,-145962.93916978,0.00013,2]
[325291555,1714684233799,-334.94556532,0.00013,2]